Cogmind - Beta 15 --- EXPLORER MODE // 2025.07.08 @ 00:37:50 // Winter2019/RPGLIKE Player: User15V Result: Destroyed by 8R-AWN with 8R-AWN's Boregun Performance ------------- Evolutions (0) 0 Regions Visited (1) 200 Robots Destroyed (8) 40 Value Destroyed (137) 137 Prototype IDs (0) 0 Alien Tech Used (0) 0 Bonus (-69) -69 TOTAL SCORE: 308 Bonus ------- Friendly Fire -69 Cogmind --------- Core Integrity 0/600 Matter 109/300 Energy 123/125 System Corruption 0% Temperature Cool (0) Movement Walking (120) Location -10/Materials Parts ------- > --- POWER (1) -------- Light Ion Engine > --- PROPULSION (2) --- Aluminum Leg Aluminum Leg > --- UTILITY (3) ------ Structural Scanner Improved Terrain Scanner > --- WEAPON (2) ------- Assault Rifle Light Assault Rifle > --- INVENTORY (3) ---- Mining Laser Peak State ------------ > --- POWER ------------ Light Ion Engine > --- PROPULSION ------- Aluminum Leg Aluminum Leg > --- UTILITY ---------- Structural Scanner Improved Terrain Scanner Light Armor Plating > --- WEAPON ----------- Assault Rifle Light Assault Rifle > --- INVENTORY -------- Mining Laser [Rating: 10] Favorites ----------- Power Light Ion Engine Engine Light Ion Engine Propulsion Aluminum Leg Leg Aluminum Leg Utility Structural Scanner Device Structural Scanner Processor Targeting Computer Protection Light Armor Plating Weapon Assault Rifle Ballistic Gun Assault Rifle Build | -11 -10 ------- Run | Yrd Mat Slots Evolved 4 | 4 . Power . | . . Propulsion 1 | 1 . Utility 2 | 2 . Weapon 1 | 1 . Parts Attached 5 | 5 . Power . | . . Engine . | . . Core . | . . Reactor . | . . Propulsion 1 | 1 . Treads . | . . Leg 1 | 1 . Wheel . | . . Hover . | . . Flight . | . . Utility 3 | 3 . Device 1 | 1 . Storage . | . . Processor 1 | 1 . Hackware . | . . Protection 1 | 1 . Artifact . | . . Weapon 1 | 1 . Energy Gun . | . . Energy Cannon . | . . Ballistic Gun 1 | 1 . Ballistic Cannon . | . . Launcher . | . . Special Weapon . | . . Impact Weapon . | . . Slashing Weapon . | . . Piercing Weapon . | . . Special Melee Weapon . | . . Unidentified Prototypes . | . . Parts Lost 1 | . 1 Power . | . . Propulsion . | . . Utility 1 | . 1 Weapon . | . . Highest Loss Streak 1 | . 1 To Critical Strikes . | . . Average Backups . | . 1 Power . | . . Propulsion . | . . Utility . | . . Weapon . | . 1 Tool/Special . | . . Unused Backups 1 | . 1 Power . | . . Propulsion . | . . Utility . | . . Weapon 1 | . 1 Tool/Special . | . . Average Slot Usage (%) 95 | . 95 Engine 12 | . 12 Leg 25 | . 25 Device 25 | . 25 Protection 7 | . 7 Ballistic Gun 25 | . 25 Peak Build Rating 10 | 10 10 Average Rating 8 | 6 9 On Entrance 7 | 4 10 Naked Turns . | . . Heaviest Build 11 | 11 11 Greatest Support 25 | 25 25 Greatest Overweight (x) . | . . Average Overweight (x) . | . . Largest Inventory Capacity 3 | 3 3 Average Capacity 3 | 3 3 Most Carried 2 | 2 1 Average Carried . | . 1 Final Capacity 3 | 3 3 Final Carried 1 | 1 1 Class Distribution -------------------- 100% | Hacker-Skirmisher Dominant Class ---------------- Hacker-Skirmisher | -10/Materials Resources | -11 -10 ----------- Run | Yrd Mat Matter Collected 338 | 268 70 Remotely . | . . Salvage Created 189 | 99 90 Parts 16 | 7 9 Haulers Intercepted . | . . Recyclers Shooed . | . . Parts Field Recycled . | . . Retrieved Matter . | . . Parts Self-Destructed . | . . Prevented . | . . Kills | -11 -10 ------- Run | Yrd Mat Combat Hostiles Destroyed 4 | . 4 Guns 4 | . 4 Classes Destroyed 5 | 2 3 Tunneler 2 | 2 . Recycler 1 | 1 . Watcher 1 | . 1 Swarmer 2 | . 2 Grunt 2 | . 2 Best Kill Streak 3 | 2 3 Combat Bots Only 2 | . 2 Max Kills in Single Turn 1 | 1 1 Gunslinging . | . . Exploded . | . . Melee . | . . Uniques/NPCs Destroyed . | . . Combat | -11 -10 -------- Run | Yrd Mat Hostile Shots Fired 133 | . 133 Missed 38 | . 38 Hits 95 | . 95 Projectile 95 | . 95 Critical Strikes 37 | . 37 Damage Taken 913 | . 913 Core 678 | . 678 Absorbed by Shields . | . . Redirected to Core 497 | . 497 Ignored by Resistances 564 | . 564 Core Remaining (%) 100 | 100 . Volleys Fired 71 | 7 64 Largest 2 | 2 2 Hottest 40 | 40 40 Shots Fired 142 | 14 128 Gun 142 | 14 128 Cannon . | . . Launcher . | . . Special . | . . Kinetic 142 | 14 128 Thermal . | . . Explosive . | . . Electromagnetic . | . . Robot Hit Streak 63 | 13 63 Robot Miss Streak 2 | . 2 Penetration Max . | . . Secondary Targets 1 | . 1 Max Gunslinging Chain 1 | . 1 Shots Hit Robots 126 | 13 113 Core Hits 31 | 4 27 Critical Kills 1 | . 1 Critical Parts Destroyed 2 | . 2 Critical Strikes 3 | . 3 Destroy 3 | . 3 Melee Attacks . | . . Impact . | . . Slashing . | . . Piercing . | . . Sneak Attacks . | . . Combat Hostiles . | . . Follow-up Attacks . | . . Damage Inflicted 1331 | 136 1195 Guns 1331 | 136 1195 Cannons . | . . Explosions . | . . Melee . | . . Ramming . | . . Kinetic 1331 | 136 1195 Thermal . | . . Explosive . | . . Electromagnetic . | . . Impact . | . . Slashing . | . . Piercing . | . . Highest Corruption . | . . Average Corruption . | . . Corruption Purged . | . . Corruption Blocked . | . . Overload Shots . | . . Overflow Damage . | . . Projectiles . | . . Explosions . | . . Melee . | . . Knockbacks . | . . Impact . | . . Kinetic . | . . Secondary . | . . Self-Inflicted Damage . | . . Shots . | . . Rammed . | . . Targets Rammed . | . . Kicked . | . . Crushed . | . . Highest Temperature 28 | 12 28 Average Temperature 7 | 5 7 Received Heat Transfer 159 | . 159 Siege Activations . | . . Martial Activations . | . . Shielding Activations . | . . Robots Disrupted . | . . Combat Hostiles . | . . Robots Corrupted . | . . Combat Hostiles . | . . Parts Fried . | . . Impact Corruptions . | . . Robots Melted . | . . Combat Hostiles . | . . Parts Melted . | . . Heat Transferred . | . . Parts Sabotaged . | . . Parts Stolen . | . . Parts Stripped . | . . Power Chain Reactions . | . . Alert | -11 -10 ------- Run | Yrd Mat Maximum Alert Level . | . . Low Security (%) 100 | 100 100 Level 1 . | . . Level 2 . | . . Level 3 . | . . Level 4 . | . . Level 5 . | . . High Security . | . . Max Security . | . . Peak Influence 70 | 5 70 Initial . | . . Average 14 | 1 17 Influence Increases 122 | 15 107 Destroy 0b10 Robot/C 80 | . 80 Destroy 0b10 Robot/NC 20 | 15 5 Destroy Leader 22 | . 22 Influence Decreases 122 | 15 107 Time Decay 112 | 15 97 Lost Part 10 | . 10 Squads Dispatched . | . . Investigation . | . . Extermination . | . . Reinforcement . | . . Assault . | . . Garrison . | . . Intercept . | . . Searches Triggered . | . . Construction Impeded . | . . Haulers Reinforced . | . . Active Scanning Responses . | . . Cargo Convoy Interrupts . | . . Stealth | -11 -10 --------- Run | Yrd Mat Distress Signals 1 | . 1 Communications Jammed . | . . Distress Signals . | . . Times Spotted 10 | . 10 Peak Tracking Total 3 | . 3 Tactical Retreats . | . . Traps | -11 -10 ------- Run | Yrd Mat Traps Triggered . | . . Indirectly . | . . Trap Hack Attempts . | . . Triggered . | . . Disarmed . | . . Reprogrammed . | . . Reused . | . . Traps Extracted . | . . Installed . | . . Triggered . | . . Machines | -11 -10 ---------- Run | Yrd Mat Machines Disabled . | . . Max in Single Turn . | . . Machines Repaired . | . . Machines Dismantled . | . . Machines Sabotaged . | . . Overloaded Fab Kills . | . . Hacking | -11 -10 --------- Run | Yrd Mat Machines Accessed . | . . Terminals . | . . Fabricators . | . . Repair Stations . | . . Recycling Units . | . . Scanalyzers . | . . Garrison Access . | . . Total Hacks . | . . Successful . | . . Failed . | . . Catastrophic . | . . Database Lockouts . | . . Manual . | . . Terminals . | . . Fabricators . | . . Repair Stations . | . . Recycling Units . | . . Scanalyzers . | . . Garrison Access . | . . Terminal Hacks . | . . Fabricator Hacks . | . . Repair Station Hacks . | . . Recycling Unit Hacks . | . . Scanalyzer . | . . Garrison Access Hacks . | . . Unauthorized Hacks . | . . Terminals . | . . Fabricators . | . . Repair Stations . | . . Recycling Units . | . . Scanalyzers . | . . Garrison Access . | . . Data Cores Recovered . | . . Used . | . . Hacking Detections . | . . Full Trace Events . | . . Feedback Events . | . . Feedback Blocked . | . . Robot Schematics Acquired . | . . Robots Built . | . . Authchips . | . . Time . | . . Total Robot Build Rating . | . . Part Schematics Acquired . | . . Parts Built . | . . Authchips . | . . Time . | . . Total Part Build Rating . | . . Parts Repaired . | . . Time . | . . Parts Recycled . | . . Recycled Matter . | . . Retrieved Matter . | . . Retrieved Components . | . . Parts Scanalyzed . | . . Part Schematics Acquired . | . . Parts Damaged . | . . Bothacking | -11 -10 ------------ Run | Yrd Mat Used RIF Installer . | . . Robots Hacked . | . . Non-combat . | . . Combat . | . . Robot Hacks Applied . | . . Relay Couplers Released . | . . Fabnet Peak Effective % . | . . Robots Rewired . | . . Allies Hacked . | . . Hacks Repelled . | . . Allies | -11 -10 -------- Run | Yrd Mat Total Allies . | . . Largest Group . | . . Highest-Rated Group . | . . Highest-Rated Ally . | . . Total Orders . | . . Ally Attacks . | . . Total Damage . | . . Kills . | . . Allies Corrupted . | . . Allies Melted . | . . Intel | -11 -10 ------- Run | Yrd Mat Active Infowar (turns) 284 | 60 224 Terrain 226 | 2 224 Structural 284 | 60 224 Robot Analysis Total . | . . Derelict Logs Recovered . | . . Drone Launches . | . . Drone Recoveries . | . . Exploration | -11 -10 ------------- Run | Yrd Mat Turns Passed 284 | 60 224 Spaces Moved 42 | 20 22 Core . | . . Treads . | . . Legs 42 | 20 22 Wheels . | . . Hover . | . . Flight . | . . Fastest Speed 120 | 120 120 Average Speed 120 | 120 120 Slowest Speed 120 | 120 120 Overloaded Moves . | . . Propulsion Burnouts . | . . Robots Hopped . | . . Potential Cave-ins . | . . Cave-ins Triggered . | . . Exploration Rate (%) 6 | 2 11 Regions Visited 1 Branch Regions . Pre-discovered Areas . | . . Known Exits Taken 1 | 1 . Unknown Exits Taken . | . . Scrap Searched . | . . Spaces Dug . | . . Terrain Destroyed . | . . Melee . | . . Projectile . | . . AOE . | . . Terrain Rammed . | . . Walls Destroyed . | . . Machines Disabled . | . . Actions | -11 -10 --------- Run | Yrd Mat Total 151 | 44 107 Wait 24 | 6 18 Move 41 | 19 22 Hop . | . . Pick Up 6 | 6 . Fast Attach . | . . Attach 5 | 5 . Detach . | . . Swap . | . . Drop 1 | 1 . Fire 71 | 7 64 Melee . | . . Ram . | . . Kick . | . . Crush . | . . Escape Stasis . | . . Rewire . | . . Trap . | . . Miscellaneous 3 | . 3 Route ------- -11/Scrapyard -10/Materials (discovered 1 exit: *Min) History --------- Turn | Location | Event 1 | -11/Scrapyard | Upgraded with Propulsion slot (x1) 1 | -11/Scrapyard | Upgraded with Utility slot (x2) 1 | -11/Scrapyard | Identified exit to Materials 1 | -11/Scrapyard | Discovered exit to Materials (range 1) 13 | -11/Scrapyard | Upgraded with Weapon slot (x1) 61 | -11/Scrapyard | Entered Materials 139 | -10/Materials | Met 8R-AWN 154 | -10/Materials | Attacked by 8R-AWN 156 | -10/Materials | Identified exit to Mines 156 | -10/Materials | Discovered exit to Mines (range 15) 211 | -10/Materials | Core integrity fell below 50% 264 | -10/Materials | Core integrity fell below 20% 285 | -10/Materials | Destroyed by 8R-AWN with 8R-AWN's Boregun Last Messages --------------- 00261_ K-01 Serf collects debris. 00262_ Protomatter-11 decays. 00264_ HV Slug penetrates K-01 Serf. 00264_ HV Slug penetrates G-34 Mercenary. 00264_ G-34 Mercenary suffers critical hit (Destroy). 00264_ Penetrated by HV Slug. 00268_ HV Slug penetrates Wall. 00268_ Penetrated by HV Slug. 00277_ HV Slug penetrates G-34 Mercenary. 00277_ G-34 Mercenary destroyed. 00277_ HV Slug penetrates G-34 Mercenary. 00277_ G-34 Mercenary suffers critical hit (Destroy). 00277_ G-34 Mercenary destroyed. 00281_ Penetrated by HV Slug. 00281_ HV Slug penetrates A-02 Transporter. 00284_ U-05 Engineer builds a Wall. 00285_ The unstable cave ceiling collapses. 00285_ Penetrated by HV Slug. Map ----- +----------------------------------------------------+ | | | | | | | ??????????????????????????####?####?##?###???????? | | ?????????????????????????#####??###########??????? | | ???????????????????????###?####?#?#??#??####?????? | | ??????????????????????#?#######?##?######????????? | | ?????????????????????##?####?##?######?#?#####???? | | ????????????????????########??#####?###?##?###???? | | ?????????????????????######?##########? ?? ? ??? | | ???????????????????##################? "? #?? | | ??????????????????#################### """ ?" ??? | | ???????????????####################### """ T? / ? | | ??????????????# # ############# "?? "" # ? | | ??????????????### ######### # "" ? ? | | ????????????? "# ## # # # | | ???????????? "" # # # # | | ???????????? # + ###?######? | | ??????????? > # # ########### ? | | ??????????? # # ########### | | ?????????? # # ########### | | ?????????? # ######### ########### | | ?????????## #" | ######### ########### | | ????????? #^^^#;###% #;######## ########### | | ????????? + *u!! am #######?#?# | | ????????? # = ==%@ | | ????????? # %%%[ g | | ????????? # #### [*########## | | ????????? # ##### ########################### | | ??????????# ##### #################### # | | ??????????# ##### # ##### """? ? | | ??????????? ##### # ##### """ ? | | ??????????? ##### # #####?""" ?? | | ???????????? ########## # """ ##### ??? | | ???????????? ######## # """ ####? ???? | | ????????????? + ## + """ #####?##???? | | ?????????????? # ## # """ ?##??#?????? | | ??????????????? # " + # #####??????? | | ??????????????? # "" ###+#########+##?##???????? | | ?????????????????? "" # ##?#?#?#?????????? | | ????????????????????"" # """ ???#??????????????? | | ????????????????????????? ???????????????????????? | | ?????????????????????????????????????????????????? | | ?????????????????????????????????????????????????? | | ?????????????????????????????????????????????????? | | ?????????????????????????????????????????????????? | | ?????????????????????????????????????????????????? | | ?????????????????????????????????????????????????? | | ?????????????????????????????????????????????????? | | ?????????????????????????????????????????????????? | +----------------------------------------------------+ Best States ------------- Heat Dissipation 25 Energy Generation 10 Energy Capacity 125 Matter Stores 300 Matter Capacity 300 Sight Range 16 Terrain Scan Range 16 Terrain Scan Density 510 Armor Coverage 150 Resistance: KI 35 Resistance: TH 35 Resistance: EX 35 Resistance: EM 35 Resistance: I 35 Resistance: S 35 Resistance: P 35 Evasion (%) 50 Targeting Accuracy 5 Offensive Hacking 20 Item Schematics ----------------- None Robot Schematics ------------------ None Fabricated ------------ Nothing Repaired ---------- Nothing Alien Tech Used ----------------- None Achievements -------------- None Challenges ------------ None RPGLIKE | -11 -10 --------- Run | Yrd Mat Levels Raised . | . . XP Earned 6500 | 6000 500 XP Spent 4550 | 4550 . Upgrades 13 | 13 . Propulsion Slot 1 | 1 . Utility Slot 2 | 2 . Weapon Slot 1 | 1 . Mass Support 1 | 1 . Inventory Capacity 3 | 3 . Terrain Scan Density 5 | 5 . Protomatter Created 57 | . 57 Integrity Restored 66 | . 66 Core 66 | . 66 Protomatter Decayed 11 | . 11 Game ------ Seed CentriumVisualBeam Manual? 0 Play Time 00:02:51 Cumulative 990.1 hours Start 2025.07.08 @ 00:35:06 End 2025.07.08 @ 00:37:50 Sessions 1 Manual Loads 0 Difficulty Explorer Special Mode Winter2019/RPGLIKE Game No. 281 Rogue 104 Adventurer 111 Explorer 66 Win Type - Total 47 Types 21/8/1/7/3/1/1/1/1/3 Lore% 96 Gallery% 99 Achievement% 96 Wizard Run 0 Options --------- Layout 2 ASCII 0 Keyboard 0 Movement Mouse Keybinds 0 Fullscreen 2 Font 24/Smallcaps Map View 50x44 Zoom Use 0% Tactical HUD 1 Map Filters NONE Filters NONE Steam 1 RUN: dfb5d1df-0420-4065-9cee-7a8c7b6593b2